Workbook

Sheet Data
C1: Table1 | G1: PivotTable1 | J1: PivotTable2
C2: Start | D2: End | E2: Flow | G2: Years | H2: 2007 | J2: Years | K2: 2007
C3: 2007-01-07 | D3: 2007-01-11 | E3: 11 | G3: Months | H3: Mar | J3: Months | K3: (Multiple Items)
C4: 2007-01-08 | D4: 2007-01-10 | E4: 3
C5: 2007-01-14 | D5: 2007-01-30 | E5: 35 | G5: DDate | H5: Sum of Flow | L5: Values
C6: 2007-01-19 | D6: 2007-01-25 | E6: 40 | G6: 1-Mar | H6: 40 | J6: Start | K6: End | L6: _End | M6: _Start
C7: 2007-01-19 | D7: 2007-01-23 | E7: 2 | G7: 2-Mar | H7: 40 | J7: 1-Feb
C8: 2007-01-21 | D8: 2007-01-23 | E8: 26 | G8: 3-Mar | H8: 75 | K8: 2007-02-14 | L8: 2007-02-14 | M8: 2007-02-01
C9: 2007-01-22 | D9: 2007-02-10 | E9: 37 | G9: 4-Mar | H9: 75 | J9: 10-Feb
C10: 2007-01-22 | D10: 2007-02-02 | E10: 33 | G10: 5-Mar | H10: 75 | K10: 2007-02-13 | L10: 2007-02-13 | M10: 2007-02-10
C11: 2007-02-01 | D11: 2007-02-14 | E11: 10 | G11: 6-Mar | H11: 75 | J11: 11-Feb
C12: 2007-02-10 | D12: 2007-02-13 | E12: 31 | G12: 7-Mar | H12: 35 | K12: 2007-02-24 | L12: 2007-02-24 | M12: 2007-02-11
C13: 2007-02-11 | D13: 2007-02-24 | E13: 31 | G13: 8-Mar | H13: 35 | J13: 14-Feb
C14: 2007-02-14 | D14: 2007-02-16 | E14: 10 | G14: 9-Mar | H14: 35 | K14: 2007-02-16 | L14: 2007-02-16 | M14: 2007-02-14
C15: 2007-02-22 | D15: 2007-02-25 | E15: 40 | G15: 10-Mar | H15: 35 | J15: 22-Feb
C16: 2007-02-27 | D16: 2007-03-06 | E16: 40 | G16: 11-Mar | H16: 48 | K16: 2007-02-25 | L16: 2007-02-25 | M16: 2007-02-22
C17: 2007-03-03 | D17: 2007-03-21 | E17: 20 | G17: 12-Mar | H17: 48 | J17: 27-Feb
C18: 2007-03-03 | D18: 2007-03-18 | E18: 15 | G18: 13-Mar | H18: 48 | K18: 2007-03-06 | L18: 2007-03-06 | M18: 2007-02-27
C19: 2007-03-11 | D19: 2007-03-14 | E19: 13 | G19: 14-Mar | H19: 48 | J19: 3-Mar
C20: 2007-03-15 | D20: 2007-04-01 | E20: 24 | G20: 15-Mar | H20: 59 | K20: 2007-03-18 | L20: 2007-03-18 | M20: 2007-03-03
C21: 2007-03-19 | D21: 2007-03-27 | E21: 39 | G21: 16-Mar | H21: 59 | K21: 2007-03-21 | L21: 2007-03-21 | M21: 2007-03-03
C22: 2007-03-21 | D22: 2007-03-23 | E22: 27 | G22: 17-Mar | H22: 59 | J22: 11-Mar
C23: 2007-03-22 | D23: 2007-04-03 | E23: 1 | G23: 18-Mar | H23: 59 | K23: 2007-03-14 | L23: 2007-03-14 | M23: 2007-03-11
C24: 2007-03-30 | D24: 2007-04-16 | E24: 26 | G24: 19-Mar | H24: 83 | J24: 15-Mar
C25: 2007-04-04 | D25: 2007-04-15 | E25: 32 | G25: 20-Mar | H25: 83 | K25: 2007-04-01 | L25: 2007-04-01 | M25: 2007-03-15
C26: 2007-04-07 | D26: 2007-04-10 | E26: 9 | G26: 21-Mar | H26: 110 | J26: 19-Mar
C27: 2007-04-07 | D27: 2007-04-21 | E27: 35 | G27: 22-Mar | H27: 91 | K27: 2007-03-27 | L27: 2007-03-27 | M27: 2007-03-19
C28: 2007-04-11 | D28: 2007-04-23 | E28: 38 | G28: 23-Mar | H28: 91 | J28: 21-Mar
C29: 2007-04-17 | D29: 2007-05-03 | E29: 4 | G29: 24-Mar | H29: 64 | K29: 2007-03-23 | L29: 2007-03-23 | M29: 2007-03-21
C30: 2007-04-28 | D30: 2007-05-05 | E30: 4 | G30: 25-Mar | H30: 64 | J30: 22-Mar
C31: 2007-05-01 | D31: 2007-05-16 | E31: 5 | G31: 26-Mar | H31: 64 | K31: 2007-04-03 | L31: 2007-04-03 | M31: 2007-03-22
C32: 2007-05-06 | D32: 2007-05-20 | E32: 31 | G32: 27-Mar | H32: 64 | J32: 30-Mar
C33: 2007-05-06 | D33: 2007-05-18 | E33: 12 | G33: 28-Mar | H33: 25 | K33: 2007-04-16 | L33: 2007-04-16 | M33: 2007-03-30
C34: 2007-05-10 | D34: 2007-05-21 | E34: 27 | G34: 29-Mar | H34: 25
C35: 2007-05-15 | D35: 2007-05-18 | E35: 26 | G35: 30-Mar | H35: 51
C36: 2007-05-15 | D36: 2007-05-28 | E36: 14 | G36: 31-Mar | H36: 51
C37: 2007-05-19 | D37: 2007-05-28 | E37: 13
C38: 2007-05-22 | D38: 2007-05-29 | E38: 23
C39: 2007-05-30 | D39: 2007-06-03 | E39: 29
C40: 2007-06-04 | D40: 2007-06-18 | E40: 21
C41: 2007-06-07 | D41: 2007-06-27 | E41: 26
C42: 2007-06-08 | D42: 2007-06-20 | E42: 2
C43: 2007-06-08 | D43: 2007-06-15 | E43: 29
C44: 2007-06-09 | D44: 2007-06-16 | E44: 37
C45: 2007-06-19 | D45: 2007-06-25 | E45: 22
C46: 2007-06-26 | D46: 2007-07-13 | E46: 3
C47: 2007-07-07 | D47: 2007-07-12 | E47: 36
C48: 2007-07-09 | D48: 2007-07-24 | E48: 23
C49: 2007-07-19 | D49: 2007-08-08 | E49: 39
C50: 2007-07-29 | D50: 2007-08-15 | E50: 2
C51: 2007-08-01 | D51: 2007-08-09 | E51: 10
C52: 2007-08-05 | D52: 2007-08-22 | E52: 23 | P52: Charts customized for March, 2007. Change to Auto for dynamic display.
C53: 2007-08-07 | D53: 2007-08-23 | E53: 24
C54: 2007-08-20 | D54: 2007-09-03 | E54: 2
C55: 2007-08-21 | D55: 2007-08-26 | E55: 26
C56: 2007-08-23 | D56: 2007-09-12 | E56: 11
C57: 2007-08-26 | D57: 2007-09-15 | E57: 33
C58: 2007-08-27 | D58: 2007-09-07 | E58: 10
C59: 2007-08-27 | D59: 2007-08-30 | E59: 24
C60: 2007-08-29 | D60: 2007-09-02 | E60: 29
C61: 2007-09-05 | D61: 2007-09-10 | E61: 2
C62: 2007-09-07 | D62: 2007-09-26 | E62: 32
C63: 2007-09-10 | D63: 2007-09-12 | E63: 35
C64: 2007-09-16 | D64: 2007-09-22 | E64: 13
C65: 2007-09-20 | D65: 2007-09-26 | E65: 2
C66: 2007-09-24 | D66: 2007-10-10 | E66: 37
C67: 2007-09-24 | D67: 2007-10-05 | E67: 18
C68: 2007-10-01 | D68: 2007-10-06 | E68: 37
C69: 2007-10-04 | D69: 2007-10-08 | E69: 37
C70: 2007-10-17 | D70: 2007-10-22 | E70: 8
C71: 2007-10-28 | D71: 2007-11-07 | E71: 25
C72: 2007-11-16 | D72: 2007-11-20 | E72: 32
C73: 2007-11-16 | D73: 2007-11-30 | E73: 36
C74: 2007-11-19 | D74: 2007-11-26 | E74: 33
C75: 2007-11-20 | D75: 2007-12-02 | E75: 16
C76: 2007-11-20 | D76: 2007-11-25 | E76: 35
C77: 2007-11-23 | D77: 2007-12-11 | E77: 19
C78: 2007-11-26 | D78: 2007-11-29 | E78: 40
C79: 2007-11-26 | D79: 2007-12-11 | E79: 32
C80: 2007-11-27 | D80: 2007-11-29 | E80: 8
C81: 2007-11-29 | D81: 2007-12-01 | E81: 30
C82: 2007-11-29 | D82: 2007-12-14 | E82: 39
C83: 2007-12-08 | D83: 2007-12-13 | E83: 13
C84: 2007-12-11 | D84: 2007-12-31 | E84: 8
C85: 2007-12-13 | D85: 2007-12-22 | E85: 38
C86: 2007-12-14 | D86: 2007-12-24 | E86: 9
C87: 2007-12-15 | D87: 2007-12-27 | E87: 15
C88: 2007-12-15 | D88: 2007-12-30 | E88: 18
C89: 2007-12-17 | D89: 2008-01-04 | E89: 7
C90: 2007-12-18 | D90: 2007-12-28 | E90: 24
C91: 2008-01-01 | D91: 2008-01-18 | E91: 1
C92: 2008-01-08 | D92: 2008-01-21 | E92: 31
C93: 2008-01-12 | D93: 2008-01-18 | E93: 11
C94: 2008-01-22 | D94: 2008-01-31 | E94: 20
C95: 2008-01-25 | D95: 2008-02-04 | E95: 9
C96: 2008-01-25 | D96: 2008-01-30 | E96: 17
C97: 2008-01-28 | D97: 2008-02-03 | E97: 21
C98: 2008-02-02 | D98: 2008-02-17 | E98: 1
C99: 2008-02-18 | D99: 2008-03-06 | E99: 11
C100: 2008-02-19 | D100: 2008-03-01 | E100: 19
C101: 2008-02-21 | D101: 2008-03-01 | E101: 12
C102: 2008-02-28 | D102: 2008-03-05 | E102: 11
C103: 2008-03-02 | D103: 2008-03-10 | E103: 33
C104: 2008-03-08 | D104: 2008-03-25 | E104: 25
C105: 2008-03-12 | D105: 2008-03-29 | E105: 25
C106: 2008-03-13 | D106: 2008-03-18 | E106: 11
C107: 2008-03-14 | D107: 2008-03-27 | E107: 25
C108: 2008-03-20 | D108: 2008-04-08 | E108: 36
C109: 2008-03-31 | D109: 2008-04-04 | E109: 12
C110: 2008-04-07 | D110: 2008-04-12 | E110: 40
C111: 2008-04-14 | D111: 2008-04-21 | E111: 13
C112: 2008-04-17 | D112: 2008-04-26 | E112: 35
C113: 2008-04-17 | D113: 2008-05-07 | E113: 0
C114: 2008-04-18 | D114: 2008-04-24 | E114: 2
C115: 2008-04-19 | D115: 2008-05-06 | E115: 11
C116: 2008-04-20 | D116: 2008-04-26 | E116: 16
C117: 2008-04-22 | D117: 2008-05-07 | E117: 0
C118: 2008-04-23 | D118: 2008-05-09 | E118: 17
C119: 2008-05-02 | D119: 2008-05-11 | E119: 37
C120: 2008-05-08 | D120: 2008-05-21 | E120: 40
C121: 2008-05-14 | D121: 2008-05-22 | E121: 7
C122: 2008-05-19 | D122: 2008-05-24 | E122: 18
C123: 2008-05-26 | D123: 2008-06-15 | E123: 30
C124: 2008-05-26 | D124: 2008-06-13 | E124: 36
C125: 2008-05-28 | D125: 2008-06-03 | E125: 27
C126: 2008-05-30 | D126: 2008-06-02 | E126: 13
C127: 2008-05-30 | D127: 2008-06-02 | E127: 24
C128: 2008-06-04 | D128: 2008-06-13 | E128: 6
C129: 2008-06-11 | D129: 2008-06-26 | E129: 15
C130: 2008-06-17 | D130: 2008-07-07 | E130: 21
C131: 2008-06-22 | D131: 2008-07-10 | E131: 39
C132: 2008-07-05 | D132: 2008-07-16 | E132: 35
C133: 2008-07-11 | D133: 2008-07-16 | E133: 20
C134: 2008-07-14 | D134: 2008-08-03 | E134: 21
C135: 2008-07-20 | D135: 2008-08-05 | E135: 3
C136: 2008-07-23 | D136: 2008-08-12 | E136: 23
C137: 2008-07-27 | D137: 2008-08-13 | E137: 39
C138: 2008-07-29 | D138: 2008-08-09 | E138: 2
C139: 2008-07-29 | D139: 2008-08-05 | E139: 40
C140: 2008-08-03 | D140: 2008-08-15 | E140: 31
C141: 2008-08-10 | D141: 2008-08-15 | E141: 10
C142: 2008-08-20 | D142: 2008-08-27 | E142: 19
C143: 2008-08-20 | D143: 2008-09-07 | E143: 16
C144: 2008-08-21 | D144: 2008-08-24 | E144: 21
C145: 2008-09-02 | D145: 2008-09-16 | E145: 35
C146: 2008-09-11 | D146: 2008-10-01 | E146: 37
C147: 2008-09-26 | D147: 2008-10-02 | E147: 2
C148: 2008-09-30 | D148: 2008-10-12 | E148: 9
C149: 2008-10-21 | D149: 2008-11-10 | E149: 36
C150: 2008-10-22 | D150: 2008-11-09 | E150: 32
C151: 2008-11-08 | D151: 2008-11-11 | E151: 5
C152: 2008-11-09 | D152: 2008-11-24 | E152: 40
C153: 2008-11-14 | D153: 2008-11-26 | E153: 12
C154: 2008-11-17 | D154: 2008-11-19 | E154: 34
C155: 2008-11-18 | D155: 2008-11-26 | E155: 2
C156: 2008-11-21 | D156: 2008-11-28 | E156: 17
C157: 2008-11-27 | D157: 2008-11-30 | E157: 13
C158: 2008-11-28 | D158: 2008-12-04 | E158: 26
C159: 2008-11-29 | D159: 2008-12-18 | E159: 37
C160: 2008-12-05 | D160: 2008-12-08 | E160: 40
C161: 2008-12-16 | D161: 2008-12-25 | E161: 0
C162: 2008-12-26 | D162: 2009-01-08 | E162: 20
C163: 2009-01-02 | D163: 2009-01-10 | E163: 2
C164: 2009-01-16 | D164: 2009-01-19 | E164: 20
C165: 2009-01-20 | D165: 2009-01-22 | E165: 20
C166: 2009-01-22 | D166: 2009-02-04 | E166: 10
C167: 2009-01-25 | D167: 2009-02-10 | E167: 38
C168: 2009-02-01 | D168: 2009-02-14 | E168: 16
C169: 2009-02-08 | D169: 2009-02-23 | E169: 3
C170: 2009-02-11 | D170: 2009-02-23 | E170: 40
C171: 2009-02-14 | D171: 2009-02-20 | E171: 21
C172: 2009-02-14 | D172: 2009-02-22 | E172: 36
C173: 2009-02-14 | D173: 2009-02-28 | E173: 10
C174: 2009-03-01 | D174: 2009-03-18 | E174: 11
C175: 2009-03-18 | D175: 2009-03-23 | E175: 28
C176: 2009-03-19 | D176: 2009-03-26 | E176: 29
C177: 2009-03-27 | D177: 2009-04-05 | E177: 6
C178: 2009-03-29 | D178: 2009-04-05 | E178: 19
C179: 2009-04-04 | D179: 2009-04-08 | E179: 2
C180: 2009-04-14 | D180: 2009-04-17 | E180: 1
C181: 2009-04-15 | D181: 2009-05-05 | E181: 9
C182: 2009-04-18 | D182: 2009-04-28 | E182: 0
C183: 2009-04-22 | D183: 2009-05-08 | E183: 31
C184: 2009-04-23 | D184: 2009-05-02 | E184: 13
C185: 2009-04-29 | D185: 2009-05-14 | E185: 23
C186: 2009-05-26 | D186: 2009-06-05 | E186: 30
C187: 2009-05-26 | D187: 2009-06-05 | E187: 40
C188: 2009-05-30 | D188: 2009-06-02 | E188: 27
C189: 2009-06-04 | D189: 2009-06-21 | E189: 9
C190: 2009-06-22 | D190: 2009-06-26 | E190: 22
C191: 2009-06-22 | D191: 2009-07-08 | E191: 6
C192: 2009-07-09 | D192: 2009-07-27 | E192: 22
C193: 2009-07-09 | D193: 2009-07-15 | E193: 33
C194: 2009-07-10 | D194: 2009-07-26 | E194: 30
C195: 2009-07-12 | D195: 2009-07-29 | E195: 5
C196: 2009-07-17 | D196: 2009-07-28 | E196: 28
C197: 2009-08-04 | D197: 2009-08-11 | E197: 32
C198: 2009-08-10 | D198: 2009-08-21 | E198: 40
C199: 2009-08-12 | D199: 2009-09-01 | E199: 29
C200: 2009-08-12 | D200: 2009-08-23 | E200: 6
... 22 more rows

Sheet AllDates
K1: Test data | L1: Test data | M1: Test data
B2: Table2 | H2: Beg | I2: Fin | J2: SSum | K2: Start | L2: End | M2: Flow
B3: DDate | C3: Flow | H3: =MIN(Table1[Start]) -> 39089 | I3: =MAX(Table1[End]) -> 40193 | J3: =SUMIFS(Table1[Flow],Table1[Start],"<="&Table2[DDate],Table1[End],">="&Table2[DDate]) -> 0 | K3: =RANDBETWEEN(39083,TODAY()) -> 2009-04-07 | L3: =Table1[Start]+RANDBETWEEN(2,20) -> 2007-01-27 | M3: =RANDBETWEEN(0,40) -> 25
B4: 2007-01-07 | C4: =SUMIFS(Table1[Flow],Table1[Start],"<="&[DDate],Table1[End],">="&[DDate]) -> 11
B5: 2007-01-08 | C5: =SUMIFS(Table1[Flow],Table1[Start],"<="&[DDate],Table1[End],">="&[DDate]) -> 14
B6: 2007-01-09 | C6: =SUMIFS(Table1[Flow],Table1[Start],"<="&[DDate],Table1[End],">="&[DDate]) -> 14
B7: 2007-01-10 | C7: =SUMIFS(Table1[Flow],Table1[Start],"<="&[DDate],Table1[End],">="&[DDate]) -> 14
B8: 2007-01-11 | C8: =SUMIFS(Table1[Flow],Table1[Start],"<="&[DDate],Table1[End],">="&[DDate]) -> 11
B9: 2007-01-12 | C9: =SUMIFS(Table1[Flow],Table1[Start],"<="&[DDate],Table1[End],">="&[DDate]) -> 0
B10: 2007-01-13 | C10: =SUMIFS(Table1[Flow],Table1[Start],"<="&[DDate],Table1[End],">="&[DDate]) -> 0
B11: 2007-01-14 | C11: =SUMIFS(Table1[Flow],Table1[Start],"<="&[DDate],Table1[End],">="&[DDate]) -> 35
B12: 2007-01-15 | C12: =SUMIFS(Table1[Flow],Table1[Start],"<="&[DDate],Table1[End],">="&[DDate]) -> 35
B13: 2007-01-16 | C13: =SUMIFS(Table1[Flow],Table1[Start],"<="&[DDate],Table1[End],">="&[DDate]) -> 35
B14: 2007-01-17 | C14: =SUMIFS(Table1[Flow],Table1[Start],"<="&[DDate],Table1[End],">="&[DDate]) -> 35
B15: 2007-01-18 | C15: =SUMIFS(Table1[Flow],Table1[Start],"<="&[DDate],Table1[End],">="&[DDate]) -> 35
B16: 2007-01-19 | C16: =SUMIFS(Table1[Flow],Table1[Start],"<="&[DDate],Table1[End],">="&[DDate]) -> 77
B17: 2007-01-20 | C17: =SUMIFS(Table1[Flow],Table1[Start],"<="&[DDate],Table1[End],">="&[DDate]) -> 77
B18: 2007-01-21 | C18: =SUMIFS(Table1[Flow],Table1[Start],"<="&[DDate],Table1[End],">="&[DDate]) -> 103
B19: 2007-01-22 | C19: =SUMIFS(Table1[Flow],Table1[Start],"<="&[DDate],Table1[End],">="&[DDate]) -> 173
B20: 2007-01-23 | C20: =SUMIFS(Table1[Flow],Table1[Start],"<="&[DDate],Table1[End],">="&[DDate]) -> 173
B21: 2007-01-24 | C21: =SUMIFS(Table1[Flow],Table1[Start],"<="&[DDate],Table1[End],">="&[DDate]) -> 145
B22: 2007-01-25 | C22: =SUMIFS(Table1[Flow],Table1[Start],"<="&[DDate],Table1[End],">="&[DDate]) -> 145
B23: 2007-01-26 | C23: =SUMIFS(Table1[Flow],Table1[Start],"<="&[DDate],Table1[End],">="&[DDate]) -> 105
B24: 2007-01-27 | C24: =SUMIFS(Table1[Flow],Table1[Start],"<="&[DDate],Table1[End],">="&[DDate]) -> 105
B25: 2007-01-28 | C25: =SUMIFS(Table1[Flow],Table1[Start],"<="&[DDate],Table1[End],">="&[DDate]) -> 105
B26: 2007-01-29 | C26: =SUMIFS(Table1[Flow],Table1[Start],"<="&[DDate],Table1[End],">="&[DDate]) -> 105
B27: 2007-01-30 | C27: =SUMIFS(Table1[Flow],Table1[Start],"<="&[DDate],Table1[End],">="&[DDate]) -> 105
B28: 2007-01-31 | C28: =SUMIFS(Table1[Flow],Table1[Start],"<="&[DDate],Table1[End],">="&[DDate]) -> 70
B29: 2007-02-01 | C29: =SUMIFS(Table1[Flow],Table1[Start],"<="&[DDate],Table1[End],">="&[DDate]) -> 80
B30: 2007-02-02 | C30: =SUMIFS(Table1[Flow],Table1[Start],"<="&[DDate],Table1[End],">="&[DDate]) -> 80
B31: 2007-02-03 | C31: =SUMIFS(Table1[Flow],Table1[Start],"<="&[DDate],Table1[End],">="&[DDate]) -> 47
B32: 2007-02-04 | C32: =SUMIFS(Table1[Flow],Table1[Start],"<="&[DDate],Table1[End],">="&[DDate]) -> 47
B33: 2007-02-05 | C33: =SUMIFS(Table1[Flow],Table1[Start],"<="&[DDate],Table1[End],">="&[DDate]) -> 47
B34: 2007-02-06 | C34: =SUMIFS(Table1[Flow],Table1[Start],"<="&[DDate],Table1[End],">="&[DDate]) -> 47
B35: 2007-02-07 | C35: =SUMIFS(Table1[Flow],Table1[Start],"<="&[DDate],Table1[End],">="&[DDate]) -> 47
B36: 2007-02-08 | C36: =SUMIFS(Table1[Flow],Table1[Start],"<="&[DDate],Table1[End],">="&[DDate]) -> 47
B37: 2007-02-09 | C37: =SUMIFS(Table1[Flow],Table1[Start],"<="&[DDate],Table1[End],">="&[DDate]) -> 47
B38: 2007-02-10 | C38: =SUMIFS(Table1[Flow],Table1[Start],"<="&[DDate],Table1[End],">="&[DDate]) -> 78
B39: 2007-02-11 | C39: =SUMIFS(Table1[Flow],Table1[Start],"<="&[DDate],Table1[End],">="&[DDate]) -> 72
B40: 2007-02-12 | C40: =SUMIFS(Table1[Flow],Table1[Start],"<="&[DDate],Table1[End],">="&[DDate]) -> 72
B41: 2007-02-13 | C41: =SUMIFS(Table1[Flow],Table1[Start],"<="&[DDate],Table1[End],">="&[DDate]) -> 72
B42: 2007-02-14 | C42: =SUMIFS(Table1[Flow],Table1[Start],"<="&[DDate],Table1[End],">="&[DDate]) -> 51
B43: 2007-02-15 | C43: =SUMIFS(Table1[Flow],Table1[Start],"<="&[DDate],Table1[End],">="&[DDate]) -> 41
B44: 2007-02-16 | C44: =SUMIFS(Table1[Flow],Table1[Start],"<="&[DDate],Table1[End],">="&[DDate]) -> 41
B45: 2007-02-17 | C45: =SUMIFS(Table1[Flow],Table1[Start],"<="&[DDate],Table1[End],">="&[DDate]) -> 31
B46: 2007-02-18 | C46: =SUMIFS(Table1[Flow],Table1[Start],"<="&[DDate],Table1[End],">="&[DDate]) -> 31
B47: 2007-02-19 | C47: =SUMIFS(Table1[Flow],Table1[Start],"<="&[DDate],Table1[End],">="&[DDate]) -> 31
B48: 2007-02-20 | C48: =SUMIFS(Table1[Flow],Table1[Start],"<="&[DDate],Table1[End],">="&[DDate]) -> 31
B49: 2007-02-21 | C49: =SUMIFS(Table1[Flow],Table1[Start],"<="&[DDate],Table1[End],">="&[DDate]) -> 31
B50: 2007-02-22 | C50: =SUMIFS(Table1[Flow],Table1[Start],"<="&[DDate],Table1[End],">="&[DDate]) -> 71
B51: 2007-02-23 | C51: =SUMIFS(Table1[Flow],Table1[Start],"<="&[DDate],Table1[End],">="&[DDate]) -> 71
B52: 2007-02-24 | C52: =SUMIFS(Table1[Flow],Table1[Start],"<="&[DDate],Table1[End],">="&[DDate]) -> 71
B53: 2007-02-25 | C53: =SUMIFS(Table1[Flow],Table1[Start],"<="&[DDate],Table1[End],">="&[DDate]) -> 40
B54: 2007-02-26 | C54: =SUMIFS(Table1[Flow],Table1[Start],"<="&[DDate],Table1[End],">="&[DDate]) -> 0
B55: 2007-02-27 | C55: =SUMIFS(Table1[Flow],Table1[Start],"<="&[DDate],Table1[End],">="&[DDate]) -> 40
B56: 2007-02-28 | C56: =SUMIFS(Table1[Flow],Table1[Start],"<="&[DDate],Table1[End],">="&[DDate]) -> 40
B57: 2007-03-01 | C57: =SUMIFS(Table1[Flow],Table1[Start],"<="&[DDate],Table1[End],">="&[DDate]) -> 40
B58: 2007-03-02 | C58: =SUMIFS(Table1[Flow],Table1[Start],"<="&[DDate],Table1[End],">="&[DDate]) -> 40
B59: 2007-03-03 | C59: =SUMIFS(Table1[Flow],Table1[Start],"<="&[DDate],Table1[End],">="&[DDate]) -> 75
B60: 2007-03-04 | C60: =SUMIFS(Table1[Flow],Table1[Start],"<="&[DDate],Table1[End],">="&[DDate]) -> 75
B61: 2007-03-05 | C61: =SUMIFS(Table1[Flow],Table1[Start],"<="&[DDate],Table1[End],">="&[DDate]) -> 75
B62: 2007-03-06 | C62: =SUMIFS(Table1[Flow],Table1[Start],"<="&[DDate],Table1[End],">="&[DDate]) -> 75
B63: 2007-03-07 | C63: =SUMIFS(Table1[Flow],Table1[Start],"<="&[DDate],Table1[End],">="&[DDate]) -> 35
B64: 2007-03-08 | C64: =SUMIFS(Table1[Flow],Table1[Start],"<="&[DDate],Table1[End],">="&[DDate]) -> 35
B65: 2007-03-09 | C65: =SUMIFS(Table1[Flow],Table1[Start],"<="&[DDate],Table1[End],">="&[DDate]) -> 35
B66: 2007-03-10 | C66: =SUMIFS(Table1[Flow],Table1[Start],"<="&[DDate],Table1[End],">="&[DDate]) -> 35
B67: 2007-03-11 | C67: =SUMIFS(Table1[Flow],Table1[Start],"<="&[DDate],Table1[End],">="&[DDate]) -> 48
B68: 2007-03-12 | C68: =SUMIFS(Table1[Flow],Table1[Start],"<="&[DDate],Table1[End],">="&[DDate]) -> 48
B69: 2007-03-13 | C69: =SUMIFS(Table1[Flow],Table1[Start],"<="&[DDate],Table1[End],">="&[DDate]) -> 48
B70: 2007-03-14 | C70: =SUMIFS(Table1[Flow],Table1[Start],"<="&[DDate],Table1[End],">="&[DDate]) -> 48
B71: 2007-03-15 | C71: =SUMIFS(Table1[Flow],Table1[Start],"<="&[DDate],Table1[End],">="&[DDate]) -> 59
B72: 2007-03-16 | C72: =SUMIFS(Table1[Flow],Table1[Start],"<="&[DDate],Table1[End],">="&[DDate]) -> 59
B73: 2007-03-17 | C73: =SUMIFS(Table1[Flow],Table1[Start],"<="&[DDate],Table1[End],">="&[DDate]) -> 59
B74: 2007-03-18 | C74: =SUMIFS(Table1[Flow],Table1[Start],"<="&[DDate],Table1[End],">="&[DDate]) -> 59
B75: 2007-03-19 | C75: =SUMIFS(Table1[Flow],Table1[Start],"<="&[DDate],Table1[End],">="&[DDate]) -> 83
B76: 2007-03-20 | C76: =SUMIFS(Table1[Flow],Table1[Start],"<="&[DDate],Table1[End],">="&[DDate]) -> 83
B77: 2007-03-21 | C77: =SUMIFS(Table1[Flow],Table1[Start],"<="&[DDate],Table1[End],">="&[DDate]) -> 110
B78: 2007-03-22 | C78: =SUMIFS(Table1[Flow],Table1[Start],"<="&[DDate],Table1[End],">="&[DDate]) -> 91
B79: 2007-03-23 | C79: =SUMIFS(Table1[Flow],Table1[Start],"<="&[DDate],Table1[End],">="&[DDate]) -> 91
B80: 2007-03-24 | C80: =SUMIFS(Table1[Flow],Table1[Start],"<="&[DDate],Table1[End],">="&[DDate]) -> 64
B81: 2007-03-25 | C81: =SUMIFS(Table1[Flow],Table1[Start],"<="&[DDate],Table1[End],">="&[DDate]) -> 64
B82: 2007-03-26 | C82: =SUMIFS(Table1[Flow],Table1[Start],"<="&[DDate],Table1[End],">="&[DDate]) -> 64
B83: 2007-03-27 | C83: =SUMIFS(Table1[Flow],Table1[Start],"<="&[DDate],Table1[End],">="&[DDate]) -> 64
B84: 2007-03-28 | C84: =SUMIFS(Table1[Flow],Table1[Start],"<="&[DDate],Table1[End],">="&[DDate]) -> 25
B85: 2007-03-29 | C85: =SUMIFS(Table1[Flow],Table1[Start],"<="&[DDate],Table1[End],">="&[DDate]) -> 25
B86: 2007-03-30 | C86: =SUMIFS(Table1[Flow],Table1[Start],"<="&[DDate],Table1[End],">="&[DDate]) -> 51
B87: 2007-03-31 | C87: =SUMIFS(Table1[Flow],Table1[Start],"<="&[DDate],Table1[End],">="&[DDate]) -> 51
B88: 2007-04-01 | C88: =SUMIFS(Table1[Flow],Table1[Start],"<="&[DDate],Table1[End],">="&[DDate]) -> 51
B89: 2007-04-02 | C89: =SUMIFS(Table1[Flow],Table1[Start],"<="&[DDate],Table1[End],">="&[DDate]) -> 27
B90: 2007-04-03 | C90: =SUMIFS(Table1[Flow],Table1[Start],"<="&[DDate],Table1[End],">="&[DDate]) -> 27
B91: 2007-04-04 | C91: =SUMIFS(Table1[Flow],Table1[Start],"<="&[DDate],Table1[End],">="&[DDate]) -> 58
B92: 2007-04-05 | C92: =SUMIFS(Table1[Flow],Table1[Start],"<="&[DDate],Table1[End],">="&[DDate]) -> 58
B93: 2007-04-06 | C93: =SUMIFS(Table1[Flow],Table1[Start],"<="&[DDate],Table1[End],">="&[DDate]) -> 58
B94: 2007-04-07 | C94: =SUMIFS(Table1[Flow],Table1[Start],"<="&[DDate],Table1[End],">="&[DDate]) -> 102
B95: 2007-04-08 | C95: =SUMIFS(Table1[Flow],Table1[Start],"<="&[DDate],Table1[End],">="&[DDate]) -> 102
B96: 2007-04-09 | C96: =SUMIFS(Table1[Flow],Table1[Start],"<="&[DDate],Table1[End],">="&[DDate]) -> 102
B97: 2007-04-10 | C97: =SUMIFS(Table1[Flow],Table1[Start],"<="&[DDate],Table1[End],">="&[DDate]) -> 102
B98: 2007-04-11 | C98: =SUMIFS(Table1[Flow],Table1[Start],"<="&[DDate],Table1[End],">="&[DDate]) -> 131
B99: 2007-04-12 | C99: =SUMIFS(Table1[Flow],Table1[Start],"<="&[DDate],Table1[End],">="&[DDate]) -> 131
B100: 2007-04-13 | C100: =SUMIFS(Table1[Flow],Table1[Start],"<="&[DDate],Table1[End],">="&[DDate]) -> 131
B101: 2007-04-14 | C101: =SUMIFS(Table1[Flow],Table1[Start],"<="&[DDate],Table1[End],">="&[DDate]) -> 131
B102: 2007-04-15 | C102: =SUMIFS(Table1[Flow],Table1[Start],"<="&[DDate],Table1[End],">="&[DDate]) -> 131
B103: 2007-04-16 | C103: =SUMIFS(Table1[Flow],Table1[Start],"<="&[DDate],Table1[End],">="&[DDate]) -> 99
B104: 2007-04-17 | C104: =SUMIFS(Table1[Flow],Table1[Start],"<="&[DDate],Table1[End],">="&[DDate]) -> 77
B105: 2007-04-18 | C105: =SUMIFS(Table1[Flow],Table1[Start],"<="&[DDate],Table1[End],">="&[DDate]) -> 77
B106: 2007-04-19 | C106: =SUMIFS(Table1[Flow],Table1[Start],"<="&[DDate],Table1[End],">="&[DDate]) -> 77
B107: 2007-04-20 | C107: =SUMIFS(Table1[Flow],Table1[Start],"<="&[DDate],Table1[End],">="&[DDate]) -> 77
B108: 2007-04-21 | C108: =SUMIFS(Table1[Flow],Table1[Start],"<="&[DDate],Table1[End],">="&[DDate]) -> 77
B109: 2007-04-22 | C109: =SUMIFS(Table1[Flow],Table1[Start],"<="&[DDate],Table1[End],">="&[DDate]) -> 42
B110: 2007-04-23 | C110: =SUMIFS(Table1[Flow],Table1[Start],"<="&[DDate],Table1[End],">="&[DDate]) -> 42
B111: 2007-04-24 | C111: =SUMIFS(Table1[Flow],Table1[Start],"<="&[DDate],Table1[End],">="&[DDate]) -> 4
B112: 2007-04-25 | C112: =SUMIFS(Table1[Flow],Table1[Start],"<="&[DDate],Table1[End],">="&[DDate]) -> 4
B113: 2007-04-26 | C113: =SUMIFS(Table1[Flow],Table1[Start],"<="&[DDate],Table1[End],">="&[DDate]) -> 4
B114: 2007-04-27 | C114: =SUMIFS(Table1[Flow],Table1[Start],"<="&[DDate],Table1[End],">="&[DDate]) -> 4
B115: 2007-04-28 | C115: =SUMIFS(Table1[Flow],Table1[Start],"<="&[DDate],Table1[End],">="&[DDate]) -> 8
B116: 2007-04-29 | C116: =SUMIFS(Table1[Flow],Table1[Start],"<="&[DDate],Table1[End],">="&[DDate]) -> 8
B117: 2007-04-30 | C117: =SUMIFS(Table1[Flow],Table1[Start],"<="&[DDate],Table1[End],">="&[DDate]) -> 8
B118: 2007-05-01 | C118: =SUMIFS(Table1[Flow],Table1[Start],"<="&[DDate],Table1[End],">="&[DDate]) -> 13
B119: 2007-05-02 | C119: =SUMIFS(Table1[Flow],Table1[Start],"<="&[DDate],Table1[End],">="&[DDate]) -> 13
B120: 2007-05-03 | C120: =SUMIFS(Table1[Flow],Table1[Start],"<="&[DDate],Table1[End],">="&[DDate]) -> 13
B121: 2007-05-04 | C121: =SUMIFS(Table1[Flow],Table1[Start],"<="&[DDate],Table1[End],">="&[DDate]) -> 9
B122: 2007-05-05 | C122: =SUMIFS(Table1[Flow],Table1[Start],"<="&[DDate],Table1[End],">="&[DDate]) -> 9
B123: 2007-05-06 | C123: =SUMIFS(Table1[Flow],Table1[Start],"<="&[DDate],Table1[End],">="&[DDate]) -> 48
B124: 2007-05-07 | C124: =SUMIFS(Table1[Flow],Table1[Start],"<="&[DDate],Table1[End],">="&[DDate]) -> 48
B125: 2007-05-08 | C125: =SUMIFS(Table1[Flow],Table1[Start],"<="&[DDate],Table1[End],">="&[DDate]) -> 48
B126: 2007-05-09 | C126: =SUMIFS(Table1[Flow],Table1[Start],"<="&[DDate],Table1[End],">="&[DDate]) -> 48
B127: 2007-05-10 | C127: =SUMIFS(Table1[Flow],Table1[Start],"<="&[DDate],Table1[End],">="&[DDate]) -> 75
B128: 2007-05-11 | C128: =SUMIFS(Table1[Flow],Table1[Start],"<="&[DDate],Table1[End],">="&[DDate]) -> 75
B129: 2007-05-12 | C129: =SUMIFS(Table1[Flow],Table1[Start],"<="&[DDate],Table1[End],">="&[DDate]) -> 75
B130: 2007-05-13 | C130: =SUMIFS(Table1[Flow],Table1[Start],"<="&[DDate],Table1[End],">="&[DDate]) -> 75
B131: 2007-05-14 | C131: =SUMIFS(Table1[Flow],Table1[Start],"<="&[DDate],Table1[End],">="&[DDate]) -> 75
B132: 2007-05-15 | C132: =SUMIFS(Table1[Flow],Table1[Start],"<="&[DDate],Table1[End],">="&[DDate]) -> 115
B133: 2007-05-16 | C133: =SUMIFS(Table1[Flow],Table1[Start],"<="&[DDate],Table1[End],">="&[DDate]) -> 115
B134: 2007-05-17 | C134: =SUMIFS(Table1[Flow],Table1[Start],"<="&[DDate],Table1[End],">="&[DDate]) -> 110
B135: 2007-05-18 | C135: =SUMIFS(Table1[Flow],Table1[Start],"<="&[DDate],Table1[End],">="&[DDate]) -> 110
B136: 2007-05-19 | C136: =SUMIFS(Table1[Flow],Table1[Start],"<="&[DDate],Table1[End],">="&[DDate]) -> 85
B137: 2007-05-20 | C137: =SUMIFS(Table1[Flow],Table1[Start],"<="&[DDate],Table1[End],">="&[DDate]) -> 85
B138: 2007-05-21 | C138: =SUMIFS(Table1[Flow],Table1[Start],"<="&[DDate],Table1[End],">="&[DDate]) -> 54
B139: 2007-05-22 | C139: =SUMIFS(Table1[Flow],Table1[Start],"<="&[DDate],Table1[End],">="&[DDate]) -> 50
B140: 2007-05-23 | C140: =SUMIFS(Table1[Flow],Table1[Start],"<="&[DDate],Table1[End],">="&[DDate]) -> 50
B141: 2007-05-24 | C141: =SUMIFS(Table1[Flow],Table1[Start],"<="&[DDate],Table1[End],">="&[DDate]) -> 50
B142: 2007-05-25 | C142: =SUMIFS(Table1[Flow],Table1[Start],"<="&[DDate],Table1[End],">="&[DDate]) -> 50
B143: 2007-05-26 | C143: =SUMIFS(Table1[Flow],Table1[Start],"<="&[DDate],Table1[End],">="&[DDate]) -> 50
B144: 2007-05-27 | C144: =SUMIFS(Table1[Flow],Table1[Start],"<="&[DDate],Table1[End],">="&[DDate]) -> 50
B145: 2007-05-28 | C145: =SUMIFS(Table1[Flow],Table1[Start],"<="&[DDate],Table1[End],">="&[DDate]) -> 50
B146: 2007-05-29 | C146: =SUMIFS(Table1[Flow],Table1[Start],"<="&[DDate],Table1[End],">="&[DDate]) -> 23
B147: 2007-05-30 | C147: =SUMIFS(Table1[Flow],Table1[Start],"<="&[DDate],Table1[End],">="&[DDate]) -> 29
B148: 2007-05-31 | C148: =SUMIFS(Table1[Flow],Table1[Start],"<="&[DDate],Table1[End],">="&[DDate]) -> 29
B149: 2007-06-01 | C149: =SUMIFS(Table1[Flow],Table1[Start],"<="&[DDate],Table1[End],">="&[DDate]) -> 29
B150: 2007-06-02 | C150: =SUMIFS(Table1[Flow],Table1[Start],"<="&[DDate],Table1[End],">="&[DDate]) -> 29
B151: 2007-06-03 | C151: =SUMIFS(Table1[Flow],Table1[Start],"<="&[DDate],Table1[End],">="&[DDate]) -> 29
B152: 2007-06-04 | C152: =SUMIFS(Table1[Flow],Table1[Start],"<="&[DDate],Table1[End],">="&[DDate]) -> 21
B153: 2007-06-05 | C153: =SUMIFS(Table1[Flow],Table1[Start],"<="&[DDate],Table1[End],">="&[DDate]) -> 21
B154: 2007-06-06 | C154: =SUMIFS(Table1[Flow],Table1[Start],"<="&[DDate],Table1[End],">="&[DDate]) -> 21
B155: 2007-06-07 | C155: =SUMIFS(Table1[Flow],Table1[Start],"<="&[DDate],Table1[End],">="&[DDate]) -> 47
B156: 2007-06-08 | C156: =SUMIFS(Table1[Flow],Table1[Start],"<="&[DDate],Table1[End],">="&[DDate]) -> 78
B157: 2007-06-09 | C157: =SUMIFS(Table1[Flow],Table1[Start],"<="&[DDate],Table1[End],">="&[DDate]) -> 115
B158: 2007-06-10 | C158: =SUMIFS(Table1[Flow],Table1[Start],"<="&[DDate],Table1[End],">="&[DDate]) -> 115
B159: 2007-06-11 | C159: =SUMIFS(Table1[Flow],Table1[Start],"<="&[DDate],Table1[End],">="&[DDate]) -> 115
B160: 2007-06-12 | C160: =SUMIFS(Table1[Flow],Table1[Start],"<="&[DDate],Table1[End],">="&[DDate]) -> 115
B161: 2007-06-13 | C161: =SUMIFS(Table1[Flow],Table1[Start],"<="&[DDate],Table1[End],">="&[DDate]) -> 115
B162: 2007-06-14 | C162: =SUMIFS(Table1[Flow],Table1[Start],"<="&[DDate],Table1[End],">="&[DDate]) -> 115
B163: 2007-06-15 | C163: =SUMIFS(Table1[Flow],Table1[Start],"<="&[DDate],Table1[End],">="&[DDate]) -> 115
B164: 2007-06-16 | C164: =SUMIFS(Table1[Flow],Table1[Start],"<="&[DDate],Table1[End],">="&[DDate]) -> 86
B165: 2007-06-17 | C165: =SUMIFS(Table1[Flow],Table1[Start],"<="&[DDate],Table1[End],">="&[DDate]) -> 49
B166: 2007-06-18 | C166: =SUMIFS(Table1[Flow],Table1[Start],"<="&[DDate],Table1[End],">="&[DDate]) -> 49
B167: 2007-06-19 | C167: =SUMIFS(Table1[Flow],Table1[Start],"<="&[DDate],Table1[End],">="&[DDate]) -> 50
B168: 2007-06-20 | C168: =SUMIFS(Table1[Flow],Table1[Start],"<="&[DDate],Table1[End],">="&[DDate]) -> 50
B169: 2007-06-21 | C169: =SUMIFS(Table1[Flow],Table1[Start],"<="&[DDate],Table1[End],">="&[DDate]) -> 48
B170: 2007-06-22 | C170: =SUMIFS(Table1[Flow],Table1[Start],"<="&[DDate],Table1[End],">="&[DDate]) -> 48
B171: 2007-06-23 | C171: =SUMIFS(Table1[Flow],Table1[Start],"<="&[DDate],Table1[End],">="&[DDate]) -> 48
B172: 2007-06-24 | C172: =SUMIFS(Table1[Flow],Table1[Start],"<="&[DDate],Table1[End],">="&[DDate]) -> 48
B173: 2007-06-25 | C173: =SUMIFS(Table1[Flow],Table1[Start],"<="&[DDate],Table1[End],">="&[DDate]) -> 48
B174: 2007-06-26 | C174: =SUMIFS(Table1[Flow],Table1[Start],"<="&[DDate],Table1[End],">="&[DDate]) -> 29
B175: 2007-06-27 | C175: =SUMIFS(Table1[Flow],Table1[Start],"<="&[DDate],Table1[End],">="&[DDate]) -> 29
B176: 2007-06-28 | C176: =SUMIFS(Table1[Flow],Table1[Start],"<="&[DDate],Table1[End],">="&[DDate]) -> 3
B177: 2007-06-29 | C177: =SUMIFS(Table1[Flow],Table1[Start],"<="&[DDate],Table1[End],">="&[DDate]) -> 3
B178: 2007-06-30 | C178: =SUMIFS(Table1[Flow],Table1[Start],"<="&[DDate],Table1[End],">="&[DDate]) -> 3
B179: 2007-07-01 | C179: =SUMIFS(Table1[Flow],Table1[Start],"<="&[DDate],Table1[End],">="&[DDate]) -> 3
B180: 2007-07-02 | C180: =SUMIFS(Table1[Flow],Table1[Start],"<="&[DDate],Table1[End],">="&[DDate]) -> 3
B181: 2007-07-03 | C181: =SUMIFS(Table1[Flow],Table1[Start],"<="&[DDate],Table1[End],">="&[DDate]) -> 3
B182: 2007-07-04 | C182: =SUMIFS(Table1[Flow],Table1[Start],"<="&[DDate],Table1[End],">="&[DDate]) -> 3
B183: 2007-07-05 | C183: =SUMIFS(Table1[Flow],Table1[Start],"<="&[DDate],Table1[End],">="&[DDate]) -> 3
B184: 2007-07-06 | C184: =SUMIFS(Table1[Flow],Table1[Start],"<="&[DDate],Table1[End],">="&[DDate]) -> 3
B185: 2007-07-07 | C185: =SUMIFS(Table1[Flow],Table1[Start],"<="&[DDate],Table1[End],">="&[DDate]) -> 39
B186: 2007-07-08 | C186: =SUMIFS(Table1[Flow],Table1[Start],"<="&[DDate],Table1[End],">="&[DDate]) -> 39
B187: 2007-07-09 | C187: =SUMIFS(Table1[Flow],Table1[Start],"<="&[DDate],Table1[End],">="&[DDate]) -> 62
B188: 2007-07-10 | C188: =SUMIFS(Table1[Flow],Table1[Start],"<="&[DDate],Table1[End],">="&[DDate]) -> 62
B189: 2007-07-11 | C189: =SUMIFS(Table1[Flow],Table1[Start],"<="&[DDate],Table1[End],">="&[DDate]) -> 62
B190: 2007-07-12 | C190: =SUMIFS(Table1[Flow],Table1[Start],"<="&[DDate],Table1[End],">="&[DDate]) -> 62
B191: 2007-07-13 | C191: =SUMIFS(Table1[Flow],Table1[Start],"<="&[DDate],Table1[End],">="&[DDate]) -> 26
B192: 2007-07-14 | C192: =SUMIFS(Table1[Flow],Table1[Start],"<="&[DDate],Table1[End],">="&[DDate]) -> 23
B193: 2007-07-15 | C193: =SUMIFS(Table1[Flow],Table1[Start],"<="&[DDate],Table1[End],">="&[DDate]) -> 23
B194: 2007-07-16 | C194: =SUMIFS(Table1[Flow],Table1[Start],"<="&[DDate],Table1[End],">="&[DDate]) -> 23
B195: 2007-07-17 | C195: =SUMIFS(Table1[Flow],Table1[Start],"<="&[DDate],Table1[End],">="&[DDate]) -> 23
B196: 2007-07-18 | C196: =SUMIFS(Table1[Flow],Table1[Start],"<="&[DDate],Table1[End],">="&[DDate]) -> 23
B197: 2007-07-19 | C197: =SUMIFS(Table1[Flow],Table1[Start],"<="&[DDate],Table1[End],">="&[DDate]) -> 62
B198: 2007-07-20 | C198: =SUMIFS(Table1[Flow],Table1[Start],"<="&[DDate],Table1[End],">="&[DDate]) -> 62
B199: 2007-07-21 | C199: =SUMIFS(Table1[Flow],Table1[Start],"<="&[DDate],Table1[End],">="&[DDate]) -> 62
B200: 2007-07-22 | C200: =SUMIFS(Table1[Flow],Table1[Start],"<="&[DDate],Table1[End],">="&[DDate]) -> 62
... 908 more rows
